bitfinex-derivatives/quotes_BNBF0:USTF0_20230901
["timestamp","ask_amount","ask_price","bid_price","bid_amount"]
[1693544409785,0.14930744,215.84,214.23,0.17012985]
[1693544426997,0.14930744,215.85,214.23,0.17012985]
[1693544427497,0.07534828,215.82,214.23,0.17012985]
[1693544430001,0.07534828,215.83,214.23,0.17012985]
[1693544431998,0.07534828,215.82,214.23,0.17012985]
[1693544433101,0.07534828,215.83,214.23,0.17012985]
[1693544433597,0.07534828,215.76,214.23,0.17012985]
[1693544434001,0.07534828,215.78,214.23,0.17012985]
[1693544435001,0.07534828,215.79,214.23,0.17012985]
[1693544435897,0.07534828,215.8,214.23,0.17012985]
[1693544439903,0.07534828,215.79,214.23,0.17012985]
[1693544440305,0.07534828,215.83,214.23,0.17012985]
[1693544440506,0.07534828,215.85,214.23,0.17012985]
[1693544457616,0.07534828,215.81,214.23,0.17012985]
[1693544458017,0.07534828,215.8,214.23,0.17012985]
[1693544462323,0.07534828,215.79,214.23,0.17012985]
[1693544462515,0.07534828,215.8,214.23,0.17012985]
[1693544463526,0.07534828,215.79,214.23,0.17012985]
[1693544468630,0.07534828,215.78,214.23,0.17012985]
[1693544469028,0.07534828,215.79,214.23,0.17012985]
[1693544469626,0.07534828,215.78,214.23,0.17012985]
[1693544471233,0.07534828,215.77,214.23,0.17012985]
[1693544473836,0.07534828,215.76,214.23,0.17012985]
[1693544480737,0.07534828,215.75,214.23,0.17012985]
[1693544486840,0.07534828,215.74,214.23,0.17012985]
[1693544487139,0.07534828,215.75,214.23,0.17012985]
[1693544488039,0.07534828,215.74,214.23,0.17012985]
[1693544488739,0.07534828,215.75,214.23,0.17012985]
[1693544488939,0.07534828,215.74,214.23,0.17012985]
[1693544490941,0.07534828,215.73,214.23,0.17012985]
[1693544491840,0.07534828,215.72,214.23,0.17012985]
[1693544492840,0.07534828,215.73,214.23,0.17012985]
[1693544494335,0.07534828,215.72,214.23,0.17012985]
[1693544502947,0.07534828,215.73,214.23,0.17012985]
[1693544505752,0.07534828,215.74,214.23,0.17012985]
[1693544508651,0.07534828,215.8,214.23,0.17012985]
[1693544508854,0.07534828,215.83,214.23,0.17012985]
[1693544509047,0.07534828,215.84,214.23,0.17012985]
[1693544509249,0.07534828,215.83,214.23,0.17012985]
[1693544509753,0.07534828,215.84,214.23,0.17012985]
[1693544509949,0.07534828,215.85,214.23,0.17012985]
[1693544510552,0.07534828,215.84,214.23,0.17012985]
[1693544511554,0.07534828,215.85,214.23,0.17012985]
[1693544512751,0.07534828,215.86,214.23,0.17012985]
[1693544513957,0.07534828,215.87,214.23,0.17012985]
[1693544515855,0.99538294,215.95,214.23,0.17012985]
[1693544515856,0.07534828,215.88,214.23,0.17012985]
[1693544518662,0.07534828,215.87,214.23,0.17012985]
[1693544521866,0.07534828,215.86,214.23,0.17012985]
[1693544525068,0.07534828,215.85,214.23,0.17012985]
[1693544527269,0.07534828,215.84,214.23,0.17012985]
[1693544528570,0.07534828,215.83,214.23,0.17012985]
[1693544530671,0.07534828,215.82,214.23,0.17012985]
[1693544532565,0.14930744,215.84,214.23,0.17012985]
[1693544532566,0.07534828,215.81,214.23,0.17012985]
[1693544534974,0.07534828,215.8,214.23,0.17012985]
[1693544536674,0.07534828,215.79,214.23,0.17012985]
[1693544537873,0.07534828,215.86,214.23,0.17012985]
[1693544538272,0.07534828,215.85,214.23,0.17012985]
[1693544538778,0.07534828,215.84,214.23,0.17012985]
[1693544539276,0.07534828,215.83,214.23,0.17012985]
[1693544540178,0.07534828,215.82,214.23,0.17012985]
[1693544541075,0.07534828,215.81,214.23,0.17012985]
[1693544541678,0.07534828,215.8,214.23,0.17012985]
[1693544542280,0.07534828,215.79,214.23,0.17012985]
[1693544542684,0.07534828,215.78,214.23,0.17012985]
[1693544544081,0.07534828,215.77,214.23,0.17012985]
[1693544544782,0.14930744,215.79,214.23,0.17012985]
[1693544544783,0.07534828,215.78,214.23,0.17012985]
[1693544545177,0.07534828,215.77,214.23,0.17012985]
[1693544549188,0.07534828,215.76,214.23,0.17012985]
[1693544549587,0.07534828,215.77,214.23,0.17012985]
[1693544550288,0.07534828,215.76,214.23,0.17012985]
[1693544550882,0.07534828,215.77,214.23,0.17012985]
[1693544551082,0.07534828,215.76,214.23,0.17012985]
[1693544556592,0.07534828,215.77,214.23,0.17012985]
[1693544557194,0.07534828,215.76,214.23,0.17012985]
[1693544557693,0.07534828,215.77,214.23,0.17012985]
[1693544559797,0.07534828,215.78,214.23,0.17012985]
[1693544560697,0.07534828,215.79,214.23,0.17012985]
[1693544561299,0.07534828,215.78,214.23,0.17012985]
[1693544561601,0.07534828,215.79,214.23,0.17012985]
[1693544562597,0.07534828,215.8,214.23,0.17012985]
[1693544563100,0.07534828,215.81,214.23,0.17012985]
[1693544563295,0.07534828,215.8,214.23,0.17012985]
[1693544563693,0.07534828,215.81,214.23,0.17012985]
[1693544564599,0.07534828,215.82,214.23,0.17012985]
[1693544565203,0.07534828,215.81,214.23,0.17012985]
[1693544565700,0.07534828,215.83,214.23,0.17012985]
[1693544566297,0.07534828,215.82,214.23,0.17012985]
[1693544566698,0.14930744,215.84,214.23,0.17012985]
[1693544566699,0.07534828,215.84,214.23,0.17012985]
[1693544567103,0.07534828,215.83,214.23,0.17012985]
[1693544567700,0.07534828,215.85,214.23,0.17012985]
[1693544568197,0.07534828,215.84,214.23,0.17012985]
[1693544568801,0.07534828,215.85,214.23,0.17012985]
[1693544569198,0.07534828,215.84,214.23,0.17012985]
[1693544570204,0.07534828,215.83,214.23,0.17012985]
[1693544571106,0.07534828,215.82,214.23,0.17012985]
[1693544572306,0.07534828,215.8,214.23,0.17012985]
[1693544572707,0.07534828,215.79,214.23,0.17012985]
[1693544573808,0.07534828,215.8,214.23,0.17012985]
[1693544576204,0.07534828,215.81,214.23,0.17012985]
[1693544579808,0.07534828,215.82,214.23,0.17012985]
[1693544582209,0.07534828,215.83,214.23,0.17012985]
[1693544584812,0.07534828,215.84,214.23,0.17012985]
[1693544585011,0.07534828,215.83,214.23,0.17012985]
[1693544585212,0.07534828,215.84,214.23,0.17012985]
[1693544587114,0.99538294,215.92,214.23,0.17012985]
[1693544587115,0.07534828,215.85,214.23,0.17012985]
[1693544588215,0.07534828,215.86,214.23,0.17012985]
[1693544589418,0.07534828,215.87,214.23,0.17012985]
[1693544590418,0.07534828,215.88,214.23,0.17012985]
[1693544591420,0.07534828,215.89,214.23,0.17012985]
[1693544591719,0.07534828,215.88,214.23,0.17012985]
[1693544592819,0.07534828,215.89,214.23,0.17012985]
[1693544593818,0.07534828,215.88,214.23,0.17012985]
[1693544594719,0.07534828,215.89,214.23,0.17012985]
[1693544623842,0.07534828,215.9,214.23,0.17012985]
[1693544626740,0.07534828,215.89,214.23,0.17012985]
[1693544627345,0.07534828,215.9,214.23,0.17012985]
[1693544642651,0.14930744,215.87,214.23,0.17012985]
[1693544642844,0.07534828,215.85,214.23,0.17012985]
[1693544644046,0.07534828,215.86,214.23,0.17012985]
[1693544644853,0.07534828,215.87,214.23,0.17012985]
[1693544645753,0.07534828,215.88,214.23,0.17012985]
[1693544646255,0.07534828,215.87,214.23,0.17012985]
[1693544646950,0.07534828,215.88,214.23,0.17012985]
[1693544647852,0.07534828,215.89,214.23,0.17012985]
[1693544650448,0.07534828,215.9,214.23,0.17012985]
[1693544656552,0.07534828,215.89,214.23,0.17012985]
[1693544658654,0.07534828,215.88,214.23,0.17012985]
[1693544661961,0.07534828,215.87,214.23,0.17012985]
[1693544662958,0.07534828,215.86,214.23,0.17012985]
[1693544665056,0.07534828,215.85,214.23,0.17012985]
[1693544667458,0.07534828,215.84,214.23,0.17012985]
[1693544669461,0.07534828,215.83,214.23,0.17012985]
[1693544670361,0.07534828,215.82,214.23,0.17012985]
[1693544672464,0.07534828,215.81,214.23,0.17012985]
[1693544673366,0.07534828,215.8,214.23,0.17012985]
[1693544674565,0.07534828,215.78,214.23,0.17012985]
[1693544677565,0.07534828,215.77,214.23,0.17012985]
[1693544680468,0.07534828,215.78,214.23,0.17012985]
[1693544684769,0.07534828,215.79,214.23,0.17012985]
[1693544687371,0.07534828,215.8,214.23,0.17012985]
[1693544688372,0.07534828,215.81,214.23,0.17012985]
[1693544689877,0.07534828,215.8,214.23,0.17012985]
[1693544690377,0.07534828,215.81,214.23,0.17012985]
[1693544691378,0.07534828,215.82,214.23,0.17012985]
[1693544704486,0.07534828,215.83,214.23,0.17012985]
[1693544716303,0.99538294,215.9,214.23,0.17012985]
[1693544716304,0.07534828,215.82,214.23,0.17012985]
[1693544729216,0.07534828,215.83,214.23,0.17012985]
[1693544744624,0.07534828,215.82,214.23,0.17012985]
[1693544745725,0.07534828,215.81,214.23,0.17012985]
[1693544746716,0.07534828,215.82,214.23,0.17012985]
[1693544747121,0.07534828,215.81,214.23,0.17012985]
[1693544753224,0.07534828,215.82,214.23,0.17012985]
[1693544754428,0.07534828,215.81,214.23,0.17012985]
[1693544754828,0.07534828,215.82,214.23,0.17012985]
[1693544755029,0.07534828,215.81,214.23,0.17012985]
[1693544760737,0.07534828,215.77,214.23,0.17012985]
[1693544761129,0.07534828,215.76,214.23,0.17012985]
[1693544762141,0.07534828,215.78,214.23,0.17012985]
[1693544763340,0.07534828,215.79,214.23,0.17012985]
[1693544764445,0.07534828,215.8,214.23,0.17012985]
[1693544765246,0.07534828,215.81,214.23,0.17012985]
[1693544767344,0.07534828,215.82,214.23,0.17012985]
[1693544775148,0.07534828,215.81,214.23,0.17012985]
[1693544775450,0.07534828,215.78,214.23,0.17012985]
[1693544777449,0.07534828,215.77,214.23,0.17012985]
[1693544778350,0.07534828,215.76,214.23,0.17012985]
[1693544780348,0.07534828,215.75,214.23,0.17012985]
[1693544782354,0.07534828,215.74,214.23,0.17012985]
[1693544784151,0.07534828,215.73,214.23,0.17012985]
[1693544786449,0.49769147,215.77,214.23,0.17012985]
[1693544786450,0.07534828,215.72,214.23,0.17012985]
[1693544787956,0.07534828,215.71,214.23,0.17012985]
[1693544789253,0.07534828,215.7,214.23,0.17012985]
[1693544791461,0.07534828,215.69,214.23,0.17012985]
[1693544793255,0.07534828,215.68,214.23,0.17012985]
[1693544794260,0.07534828,215.67,214.23,0.17012985]
[1693544800264,0.07534828,215.68,214.23,0.17012985]
[1693544805268,0.07534828,215.69,214.23,0.17012985]
[1693544805769,0.07534828,215.68,214.23,0.17012985]
[1693544810174,0.07534828,215.69,214.23,0.17012985]
[1693544810374,0.07534828,215.68,214.23,0.17012985]
[1693544811470,0.07534828,215.69,214.23,0.17012985]
[1693544812174,0.07534828,215.7,214.23,0.17012985]
[1693544813278,0.07534828,215.71,214.23,0.17012985]
[1693544814276,0.07534828,215.72,214.23,0.17012985]
[1693544815073,0.07534828,215.71,214.23,0.17012985]
[1693544815272,0.07534828,215.72,214.23,0.17012985]
[1693544815475,0.07534828,215.73,214.23,0.17012985]
[1693544816072,0.07534828,215.72,214.23,0.17012985]
[1693544816273,0.07534828,215.73,214.23,0.17012985]
[1693544823389,0.07534828,215.74,214.23,0.17012985]
[1693544823589,0.07534828,215.73,214.23,0.17012985]
[1693544824089,0.07534828,215.74,214.23,0.17012985]
[1693544833909,2.48845735,215.87,214.23,0.17012985]
[1693544834099,0.15095518,215.76,214.23,0.17012985]
[1693544834294,0.07547759,215.74,214.23,0.17012985]
[1693544836599,0.07547759,215.73,214.23,0.17012985]
[1693544853323,0.07547759,215.74,214.23,0.17012985]
[1693544859322,0.07547759,215.73,214.23,0.17012985]
[1693544864234,0.07547759,215.74,214.23,0.17012985]
[1693544865232,0.07547759,215.73,214.23,0.17012985]
[1693544871637,0.07547759,215.74,214.23,0.17012985]
[1693544872739,0.07547759,215.73,214.23,0.17012985]
[1693544882037,0.07547759,215.72,214.23,0.17012985]
[1693544882641,0.07547759,215.73,214.23,0.17012985]
[1693544883243,0.07547759,215.72,214.23,0.17012985]
[1693544885142,0.07547759,215.73,214.23,0.17012985]
[1693544900353,0.07547759,215.72,214.23,0.17012985]
[1693544909262,0.07547759,215.71,214.23,0.17012985]
[1693544909461,0.07547759,215.72,214.23,0.17012985]
[1693544909665,0.07547759,215.71,214.23,0.17012985]
[1693544909865,0.07547759,215.72,214.23,0.17012985]
[1693544933286,0.07547759,215.73,214.23,0.17012985]
[1693544965915,0.07547759,215.72,214.23,0.17012985]
[1693544981030,0.15095518,215.74,214.23,0.17012985]
[1693544981031,0.07547759,215.73,214.23,0.17012985]
[1693544988936,0.07547759,215.72,214.23,0.17012985]
[1693544989136,0.07547759,215.73,214.23,0.17012985]
[1693544995539,0.07547759,215.72,214.23,0.17012985]
[1693545007348,0.07547759,215.73,214.23,0.17012985]
[1693545010652,0.07547759,215.72,214.23,0.17012985]
[1693545012753,0.07547759,215.73,214.23,0.17012985]
[1693545012953,0.07547759,215.72,214.23,0.17012985]
[1693545013556,0.07547759,215.73,214.23,0.17012985]
[1693545014759,0.07547759,215.72,214.23,0.17012985]
[1693545014959,0.07547759,215.73,214.23,0.17012985]
[1693545015358,0.07547759,215.72,214.23,0.17012985]
[1693545015754,0.07547759,215.73,214.23,0.17012985]
[1693545015956,0.07547759,215.72,214.23,0.17012985]
[1693545028566,0.07547759,215.71,214.23,0.17012985]
[1693545029267,0.07547759,215.72,214.23,0.17012985]
[1693545029466,0.07547759,215.71,214.23,0.17012985]
[1693545029871,0.07547759,215.7,214.23,0.17012985]
[1693545030870,0.07547759,215.69,214.23,0.17012985]
[1693545031171,0.07547759,215.7,214.23,0.17012985]
[1693545034675,0.07547759,215.71,214.23,0.17012985]
[1693545057985,0.07547759,215.72,214.23,0.17012985]
[1693545060186,0.07547759,215.71,214.23,0.17012985]
[1693545074700,0.07554414,215.71,214.23,0.17012985]
[1693545083103,0.07554414,215.7,214.23,0.17012985]
[1693545093412,0.07554414,215.69,214.23,0.17012985]
[1693545093613,0.07554414,215.65,214.23,0.17012985]
[1693545094208,0.07554414,215.64,214.23,0.17012985]
[1693545094412,0.07554414,215.66,214.23,0.17012985]
[1693545095214,0.07554414,215.67,214.23,0.17012985]
[1693545095609,0.07554414,215.66,214.23,0.17012985]
[1693545096014,0.07554414,215.65,214.23,0.17012985]
[1693545096316,0.07554414,215.63,214.23,0.17012985]
[1693545096514,0.07554414,215.62,214.23,0.17012985]
[1693545096714,0.07554414,215.63,214.23,0.17012985]
[1693545097312,0.07554414,215.61,214.23,0.17012985]
[1693545098412,0.07554414,215.59,214.23,0.17012985]
[1693545098613,0.07554414,215.57,214.23,0.17012985]
[1693545098818,0.07554414,215.56,214.23,0.17012985]
[1693545099017,0.07554414,215.55,214.23,0.17012985]
[1693545099219,0.07554414,215.53,214.23,0.17012985]
[1693545099720,0.07554414,215.52,214.23,0.17012985]
[1693545099914,0.07554414,215.51,214.23,0.17012985]
[1693545100217,0.07554414,215.48,214.23,0.17012985]
[1693545100417,0.07554414,215.43,214.23,0.17012985]
[1693545101217,0.07554414,215.39,214.23,0.17012985]
[1693545101617,0.15108829,215.41,214.23,0.17012985]
[1693545101618,0.07554414,215.44,214.23,0.17012985]
[1693545101813,0.07554414,215.45,214.23,0.17012985]
[1693545102012,0.07554414,215.46,214.23,0.17012985]
[1693545102217,0.07554414,215.44,214.23,0.17012985]
[1693545102418,0.07554414,215.45,214.23,0.17012985]
[1693545103218,0.07554414,215.44,214.23,0.17012985]
[1693545103923,0.07554414,215.45,214.23,0.17012985]
[1693545104218,0.07554414,215.44,214.23,0.17012985]
[1693545105822,0.07554414,215.43,214.23,0.17012985]
[1693545107123,0.07554414,215.44,214.23,0.17012985]
[1693545109224,0.07554414,215.45,214.23,0.17012985]
[1693545111827,0.07554414,215.44,214.23,0.17012985]
[1693545117132,0.07554414,215.43,214.23,0.17012985]
[1693545119233,0.07554414,215.42,214.23,0.17012985]
[1693545121235,0.07554414,215.41,214.23,0.17012985]
[1693545122136,0.07554414,215.4,214.23,0.17012985]
[1693545123239,0.15108829,215.42,214.23,0.17012985]
[1693545123240,0.07554414,215.39,214.23,0.17012985]
[1693545123538,0.07554414,215.38,214.23,0.17012985]
[1693545124233,1.00725531,215.46,214.23,0.17012985]
[1693545124234,0.07554414,215.37,214.23,0.17012985]
[1693545125333,0.07554414,215.35,214.23,0.17012985]
[1693545126140,0.07554414,215.34,214.23,0.17012985]
[1693545126836,0.07554414,215.33,214.23,0.17012985]
[1693545127239,0.07554414,215.31,214.23,0.17012985]
[1693545128236,0.07554414,215.29,214.23,0.17012985]
[1693545128436,0.07554414,215.28,214.23,0.17012985]
[1693545129536,0.07554414,215.27,214.23,0.17012985]
[1693545130139,0.07554414,215.25,214.23,0.17012985]
[1693545130735,0.07554414,215.2,214.23,0.17012985]
[1693545130935,0.07554414,215.18,214.23,0.17012985]
[1693545132335,0.07554414,215.19,214.23,0.17012985]
[1693545132541,0.07554414,215.14,214.23,0.17012985]
[1693545132739,0.07554414,215.17,214.23,0.17012985]
[1693545132941,0.07554414,215.18,214.23,0.17012985]
[1693545133140,0.07554414,215.19,214.23,0.17012985]
[1693545133340,0.07554414,215.2,214.23,0.17012985]
[1693545134341,0.07554414,215.21,214.23,0.17012985]
[1693545134542,0.07554414,215.2,214.23,0.17012985]
[1693545134843,0.07554414,215.21,214.23,0.17012985]
[1693545135840,0.07554414,215.2,214.23,0.17012985]
[1693545137243,0.07554414,215.21,214.23,0.17012985]
[1693545138442,0.07554414,215.22,214.23,0.17012985]
[1693545140437,0.07554414,215.23,214.23,0.17012985]
[1693545142745,0.07554414,215.24,214.23,0.17012985]
[1693545152249,0.07554414,215.27,214.23,0.17012985]
[1693545153248,0.07554414,215.31,214.23,0.17012985]
[1693545153448,0.07554414,215.3,214.23,0.17012985]
[1693545153954,0.07554414,215.31,214.23,0.17012985]
[1693545154150,0.07554414,215.32,214.23,0.17012985]
[1693545155356,0.07554414,215.34,215.32,0.00238326]
[1693545155557,0.00476651,215.29,214.23,0.17012985]
[1693545164470,0.08031065,215.29,214.23,0.17012985]
[1693545165269,0.07554414,215.26,214.23,0.17012985]
[1693545168171,0.07554414,215.27,214.23,0.17012985]
[1693545170268,0.07554414,215.28,214.23,0.17012985]
[1693545173475,0.07554414,215.29,214.23,0.17012985]
[1693545174278,0.07554414,215.3,214.23,0.17012985]
[1693545175274,0.07554414,215.31,214.23,0.17012985]
[1693545176173,0.07554414,215.32,214.23,0.17012985]
[1693545177181,0.07554414,215.33,214.23,0.17012985]
[1693545177381,0.07554414,215.34,214.23,0.17012985]
[1693545177583,0.07554414,215.35,214.23,0.17012985]
[1693545178183,0.07554414,215.36,214.23,0.17012985]
[1693545178378,0.07554414,215.37,214.23,0.17012985]
[1693545179184,0.07554414,215.38,214.23,0.17012985]
[1693545179379,0.07554414,215.39,214.23,0.17012985]
[1693545182079,0.07554414,215.4,214.23,0.17012985]
[1693545182586,0.07554414,215.41,214.23,0.17012985]
[1693545183382,2.51813827,215.54,214.23,0.17012985]
[1693545183383,0.07554414,215.42,214.23,0.17012985]
[1693545184388,0.07554414,215.44,214.23,0.17012985]
[1693545184988,0.07554414,215.5,214.23,0.17012985]
[1693545185389,0.07554414,215.51,214.23,0.17012985]
[1693545185789,0.07554414,215.53,214.23,0.17012985]
[1693545185986,0.07554414,215.52,214.23,0.17012985]
[1693545186391,0.07554414,215.54,214.23,0.17012985]
[1693545187394,0.07554414,215.56,214.23,0.17012985]
[1693545187694,0.07554414,215.55,214.23,0.17012985]
[1693545188490,0.07554414,215.57,214.23,0.17012985]
[1693545188692,0.07554414,215.56,214.23,0.17012985]
[1693545189493,0.07554414,215.57,214.23,0.17012985]
[1693545190295,0.07554414,215.58,214.23,0.17012985]
[1693545190696,0.07554414,215.57,214.23,0.17012985]
[1693545191795,0.07554414,215.56,214.23,0.17012985]
[1693545193292,0.07554414,215.55,214.23,0.17012985]
[1693545194800,0.07554414,215.54,214.23,0.17012985]
[1693545195302,0.07554414,215.59,214.23,0.17012985]
[1693545196001,0.07554414,215.58,214.23,0.17012985]
[1693545196797,0.07554414,215.56,214.23,0.17012985]
[1693545197700,0.07554414,215.55,214.23,0.17012985]
[1693545198500,0.07554414,215.54,214.23,0.17012985]
[1693545198700,0.07554414,215.53,214.23,0.17012985]
[1693545199704,0.07554414,215.52,214.23,0.17012985]
[1693545200304,0.07554414,215.51,214.23,0.17012985]
[1693545201099,0.07554414,215.5,214.23,0.17012985]
[1693545201705,0.07554414,215.49,214.23,0.17012985]
[1693545202705,0.07554414,215.48,214.23,0.17012985]
[1693545204305,0.07554414,215.47,214.23,0.17012985]
[1693545205305,0.07554414,215.46,214.23,0.17012985]
[1693545206801,0.07554414,215.45,214.23,0.17012985]
[1693545207608,0.07554414,215.44,214.23,0.17012985]
[1693545208710,0.07554414,215.43,214.23,0.17012985]
[1693545210012,0.07554414,215.42,214.23,0.17012985]
[1693545210213,0.07554414,215.43,214.23,0.17012985]
[1693545211413,0.07554414,215.42,214.23,0.17012985]
[1693545212107,0.07554414,215.41,214.23,0.17012985]
[1693545212715,0.07554414,215.4,214.23,0.17012985]
[1693545213614,0.07554414,215.39,214.23,0.17012985]
[1693545215015,0.07554414,215.38,214.23,0.17012985]
[1693545215321,0.07554414,215.39,214.23,0.17012985]
[1693545215712,0.07554414,215.38,214.23,0.17012985]
[1693545216417,0.07554414,215.39,214.23,0.17012985]
[1693545216716,0.07554414,215.38,214.23,0.17012985]
[1693545217818,0.07554414,215.37,214.23,0.17012985]
[1693545218318,0.07554414,215.38,214.23,0.17012985]
[1693545218720,0.07554414,215.37,214.23,0.17012985]
[1693545219614,0.07554414,215.35,214.23,0.17012985]
[1693545221418,0.07554414,215.36,214.23,0.17012985]
[1693545221617,0.15108829,215.38,214.23,0.17012985]
[1693545221618,0.07554414,215.37,214.23,0.17012985]
[1693545222522,0.07554414,215.36,214.23,0.17012985]
[1693545223622,0.07554414,215.35,214.23,0.17012985]
[1693545224025,0.07554414,215.34,214.23,0.17012985]
[1693545224420,0.07554414,215.35,214.23,0.17012985]
[1693545225022,0.07554414,215.34,214.23,0.17012985]
[1693545225529,0.07554414,215.35,214.23,0.17012985]
[1693545225822,0.07554414,215.34,214.23,0.17012985]
[1693545226029,0.07554414,215.35,214.23,0.17012985]
[1693545228328,0.07554414,215.36,214.23,0.17012985]
[1693545228729,0.15108829,215.38,214.23,0.17012985]
[1693545228730,0.07554414,215.35,214.23,0.17012985]
[1693545229430,0.07554414,215.36,214.23,0.17012985]
[1693545229827,0.07554414,215.35,214.23,0.17012985]
[1693545230230,1.00725531,215.43,214.23,0.17012985]
[1693545230231,0.07554414,215.36,214.23,0.17012985]
[1693545231130,0.07554414,215.37,214.23,0.17012985]
[1693545232532,0.07554414,215.38,214.23,0.17012985]
[1693545233328,0.15108829,215.4,214.23,0.17012985]
[1693545233329,0.07554414,215.4,214.23,0.17012985]
[1693545234228,0.07554414,215.41,214.23,0.17012985]
[1693545234631,0.07554414,215.42,214.23,0.17012985]
[1693545235333,0.07554414,215.43,214.23,0.17012985]
[1693545236328,0.07554414,215.45,214.23,0.17012985]
[1693545236528,0.07554414,215.46,214.23,0.17012985]
[1693545236929,0.07554414,215.47,214.23,0.17012985]
[1693545237132,0.07554414,215.46,214.23,0.17012985]
[1693545237328,0.07554414,215.49,214.23,0.17012985]
[1693545238334,0.50362765,215.54,214.23,0.17012985]
[1693545238335,0.07554414,215.5,214.23,0.17012985]
[1693545239335,0.07554414,215.52,214.23,0.17012985]
[1693545242337,0.07554414,215.54,214.23,0.17012985]
[1693545243633,0.07554414,215.56,214.23,0.17012985]
[1693545244739,0.07554414,215.59,214.23,0.17012985]
[1693545245738,0.07554414,215.6,214.23,0.17012985]
[1693545247240,1.69044892,218.04,214.23,0.17012985]
[1693545247441,0.07547841,215.61,214.23,0.17012985]
[1693545248743,0.07547841,215.62,214.23,0.17012985]
[1693545249341,0.07547841,215.68,214.23,0.17012985]
[1693545249542,0.07547841,215.69,214.23,0.17012985]
[1693545249742,0.07547841,215.68,214.23,0.17012985]
[1693545250639,0.07547841,215.69,214.23,0.17012985]
[1693545251243,0.07547841,215.68,214.23,0.17012985]
[1693545251644,0.07547841,215.69,214.23,0.17012985]
[1693545252844,0.07547841,215.7,214.23,0.17012985]
[1693545253646,0.07547841,215.71,214.23,0.17012985]
[1693545253947,0.07547841,215.7,214.23,0.17012985]
[1693545254641,0.07547841,215.72,214.23,0.17012985]
[1693545254841,0.07547841,215.71,214.23,0.17012985]
[1693545255844,0.07547841,215.7,214.23,0.17012985]
[1693545256844,0.07547841,215.71,214.23,0.17012985]
[1693545257143,0.07547841,215.7,214.23,0.17012985]
[1693545258951,1.0063789,215.77,214.23,0.17012985]
[1693545258952,0.07547841,215.69,214.23,0.17012985]
[1693545260953,0.07547841,215.68,214.23,0.17012985]
[1693545264953,0.07547841,215.67,214.23,0.17012985]
[1693545265660,0.07547841,215.69,214.23,0.17012985]
[1693545266863,0.07547841,215.68,214.23,0.17012985]
[1693545267463,0.07547841,215.67,214.23,0.17012985]
[1693545267662,0.07547841,215.68,214.23,0.17012985]
[1693545267863,0.07547841,215.67,214.23,0.17012985]
[1693545268763,0.07547841,215.66,214.23,0.17012985]
[1693545271765,0.07547841,215.65,214.23,0.17012985]
[1693545274366,0.07547841,215.64,214.23,0.17012985]
[1693545277166,0.07547841,215.65,214.23,0.17012985]
[1693545277361,0.07547841,215.66,214.23,0.17012985]
[1693545278669,0.07547841,215.65,214.23,0.17012985]
[1693545278871,0.07547841,215.66,214.23,0.17012985]
[1693545279070,0.07547841,215.65,214.23,0.17012985]
[1693545280779,0.07547841,215.64,214.23,0.17012985]
[1693545283174,0.07547841,215.63,214.23,0.17012985]
[1693545283875,1.0063789,215.7,214.23,0.17012985]
[1693545283876,0.07547841,215.62,214.23,0.17012985]
[1693545286574,1.0063789,215.7,214.23,0.17012985]
[1693545286575,0.07547841,215.63,214.23,0.17012985]
[1693545288077,0.07547841,215.64,214.23,0.17012985]
[1693545289679,0.07547841,215.65,214.23,0.17012985]
[1693545290480,0.07547841,215.66,214.23,0.17012985]
[1693545292181,0.07547841,215.67,214.23,0.17012985]
[1693545293582,0.07547841,215.68,214.23,0.17012985]
[1693545293982,0.07547841,215.67,214.23,0.17012985]
[1693545294778,0.07547841,215.68,214.23,0.17012985]
[1693545295582,0.07547841,215.69,214.23,0.17012985]
[1693545295784,0.07547841,215.68,214.23,0.17012985]
[1693545296679,0.07547841,215.69,214.23,0.17012985]
[1693545298680,0.07547841,215.7,214.23,0.17012985]
[1693545302785,0.07547841,215.71,214.23,0.17012985]
[1693545303887,0.07547841,215.72,214.23,0.17012985]
[1693545304685,0.07547841,215.71,214.23,0.17012985]
[1693545309787,0.07547841,215.76,214.23,0.17012985]
[1693545309989,0.07547841,215.8,214.23,0.17012985]
[1693545311093,0.07547841,215.81,214.23,0.17012985]
[1693545311893,0.07547841,215.82,214.23,0.17012985]
[1693545312288,0.07547841,215.81,214.23,0.17012985]
[1693545313094,0.07547841,215.8,214.23,0.17012985]
[1693545313689,0.07547841,215.76,214.23,0.17012985]
[1693545316791,0.07547841,215.8,214.23,0.17012985]
[1693545318995,0.07547841,215.79,214.23,0.17012985]
[1693545319597,0.07547841,215.8,214.23,0.17012985]
[1693545319999,0.07547841,215.79,214.23,0.17012985]
[1693545320997,0.07547841,215.78,214.23,0.17012985]
[1693545322303,0.07547841,215.79,214.23,0.17012985]
[1693545322898,0.07547841,215.78,214.23,0.17012985]
[1693545324201,0.07547841,215.77,214.23,0.17012985]
[1693545325902,0.07547841,215.76,214.23,0.17012985]
[1693545326904,0.07547841,215.75,214.23,0.17012985]
[1693545329105,0.07547841,215.74,214.23,0.17012985]
[1693545333005,0.07547841,215.73,214.23,0.17012985]
[1693545337610,0.07547841,215.72,214.23,0.17012985]
[1693545339906,0.50318945,215.77,214.23,0.17012985]
[1693545339907,0.07547841,215.71,214.23,0.17012985]
[1693545341304,0.07547841,215.7,214.23,0.17012985]